bitfinex/quotes_SOLUSD_20241105
["timestamp","ask_amount","ask_price","bid_price","bid_amount"]
[1730834727582,5.9873,167.02,166.96,11.01188919]
[1730834727896,11.01188919,167.02,166.97,11.01188919]
[1730834728199,11.01188919,167.02,166.96,11.01188919]
[1730834728400,11.01188919,167.02,166.97,11.01188919]
[1730834728700,22.0957,167.07,166.98,17.00058919]
[1730834729005,11.01188919,167.04,166.98,191.97238919]
[1730834729397,11.01188919,167.03,166.98,180.9605]
[1730834729602,11.01188919,167.02,166.98,180.9605]
[1730834729777,11.01188919,167.01,166.98,160.0]
[1730834730202,11.01188919,166.99,166.97,160.0]
[1730834731098,11.01188919,166.98,166.95,174.9743]
[1730834731487,16.99988919,167.0,166.95,180.9641]
[1730834733593,11.01188919,167.01,166.95,191.97598919]
[1730834734703,6.1729,167.05,166.95,191.97598919]
[1730834734704,11.01188919,167.03,166.97,11.01188919]
[1730834734884,11.01188919,167.03,166.97,171.01188919]
[1730834735285,11.01188919,167.04,166.98,11.01188919]
[1730834735814,16.99858919,167.04,166.99,5.9883]
[1730834736286,11.01188919,167.03,166.99,165.9883]
[1730834736902,16.99888919,167.03,166.99,165.9883]
[1730834737904,16.99888919,167.03,166.99,160.0]
[1730834739519,11.01188919,167.04,166.99,191.97098919]
[1730834740416,5.9858,167.06,166.99,191.97098919]
[1730834740417,11.01188919,167.05,166.99,191.97098919]
[1730834740713,16.99808919,167.05,166.99,191.97098919]
[1730834741012,11.01188919,167.04,166.99,180.9591]
[1730834741396,11.01188919,167.03,166.99,180.9591]
[1730834746393,11.01188919,167.04,166.99,180.9591]
[1730834746594,11.01188919,167.04,166.99,191.97098919]
[1730834746892,11.01188919,167.05,167.0,11.01188919]
[1730834747218,11.01188919,167.05,166.99,191.97098919]
[1730834747385,16.99828919,167.05,166.99,191.97098919]
[1730834747793,11.01188919,167.04,166.99,191.97098919]
[1730834749106,16.99828919,167.05,166.99,191.97098919]
[1730834749703,11.01188919,167.04,166.99,180.9591]
[1730834751810,16.99828919,167.05,166.99,191.97098919]
[1730834755498,11.01188919,167.04,166.99,180.9591]
[1730834756995,15.2907,167.11,166.99,180.9591]
[1730834756996,11.01188919,167.02,166.99,160.0]
[1730834757197,11.01188919,167.0,166.99,160.0]
[1730834757418,11.01188919,167.02,166.99,165.9883]
[1730834757619,11.01188919,167.03,166.99,160.0]
[1730834757814,11.01188919,167.01,166.99,160.0]
[1730834758125,11.01188919,167.0,166.97,176.3374]
[1730834758306,11.01188919,166.99,166.97,160.0]
[1730834759800,11.01188919,166.99,166.95,167.02767554]
[1730834760321,11.01188919,166.99,166.95,182.00217554]
[1730834761602,11.01188919,167.02,166.96,11.01188919]
[1730834761799,11.01188919,167.04,166.98,11.01188919]
[1730834762024,11.01188919,167.04,166.98,171.01188919]
[1730834763028,11.01188919,167.03,166.98,165.9886]
[1730834764120,16.99878919,167.03,166.98,165.9886]
[1730834767009,5.9847,167.09,167.0,11.01188919]
[1730834767309,11.01188919,167.06,167.0,171.01188919]
[1730834767509,11.01188919,167.04,167.0,160.0]
[1730834768009,11.01188919,167.05,167.0,160.0]
[1730834768410,11.01188919,167.05,167.0,165.9877]
[1730834768621,11.01188919,167.05,167.0,191.96958919]
[1730834768925,16.99788919,167.06,167.0,191.96958919]
[1730834769428,11.01188919,167.06,167.0,191.96958919]
[1730834770515,11.01188919,167.05,167.0,191.96958919]
[1730834770710,11.01188919,167.04,167.0,180.9577]
[1730834772233,11.01188919,167.05,167.0,180.9577]
[1730834774316,11.01188919,167.02,167.0,160.0]
[1730834774512,11.01188919,167.01,166.99,160.0]
[1730834774709,11.01188919,167.0,166.99,160.0]
[1730834774913,11.01188919,167.0,166.96,182.00096056]
[1730834775127,11.01188919,166.99,166.96,182.00096056]
[1730834776613,11.01188919,167.0,166.96,182.00096056]
[1730834777137,11.01188919,167.01,166.96,182.00096056]
[1730834777516,14.9646,167.06,166.96,182.00096056]
[1730834777720,11.01188919,167.0,166.96,182.00096056]
[1730834778229,11.01188919,167.02,166.96,193.01284975]
[1730834779137,11.01188919,167.02,166.97,11.01188919]
[1730834779833,14.9646,167.06,166.97,11.01188919]
[1730834780041,11.01188919,167.02,166.98,5.9887]
[1730834780210,11.01188919,167.03,166.98,180.9605]
[1730834780555,11.01188919,167.05,167.0,11.01188919]
[1730834780710,11.01188919,167.05,167.0,171.01188919]
[1730834781616,11.01188919,167.05,167.0,176.99978919]
[1730834782149,11.01188919,167.04,167.0,165.9879]
[1730834782437,11.01188919,167.02,167.0,160.0]
[1730834782734,11.01188919,167.01,167.0,160.0]
[1730834783242,11.01188919,167.01,166.95,197.0867]
[1730834783443,11.01188919,166.97,166.95,190.9563]
[1730834784038,11.01188919,166.97,166.95,175.9819]
[1730834784638,11.01188919,166.98,166.95,175.9819]
[1730834784938,11.01188919,167.0,166.95,196.9459]
[1730834785545,11.01188919,166.99,166.95,196.9459]
[1730834786521,11.01188919,166.98,166.95,196.9459]
[1730834786918,11.01188919,166.98,166.95,175.9819]
[1730834787543,11.01188919,166.99,166.95,181.9715]
[1730834788442,11.01188919,167.01,166.95,207.95788919]
[1730834788946,11.01188919,167.02,166.96,11.01188919]
[1730834789123,11.01188919,167.03,166.97,17.28958919]
[1730834790125,11.01188919,167.03,166.98,5.9887]
[1730834790532,11.01188919,167.03,166.98,31.97238919]
[1730834791133,11.01188919,167.05,166.99,11.01188919]
[1730834791329,11.01188919,167.05,166.99,171.01188919]
[1730834791936,11.01188919,167.04,166.99,171.01188919]
[1730834792248,11.01188919,167.04,167.0,5.988]
[1730834792951,11.01188919,167.01,166.99,160.0]
[1730834793248,11.01188919,167.0,166.99,160.0]
[1730834793843,44.04755676,167.04,166.99,160.0]
[1730834793844,11.01188919,167.01,166.99,165.9883]
[1730834794850,11.01188919,167.01,166.99,160.0]
[1730834795030,14.9619,167.09,166.99,160.0]
[1730834795031,11.01188919,167.0,166.99,160.0]
[1730834795429,17.23180485,167.0,166.99,160.0]
[1730834795845,17.23180485,167.02,166.99,160.0]
[1730834796156,17.23180485,167.02,166.99,165.9882]
[1730834798447,17.23180485,167.03,166.99,165.9882]
[1730834799742,17.23180485,167.05,166.99,198.19090485]
[1730834800151,17.23180485,167.04,166.99,180.9591]
[1730834801339,17.23180485,167.05,166.99,198.19090485]
[1730834801535,17.23180485,167.04,166.99,198.19090485]
[1730834802764,17.23180485,167.05,166.99,198.19090485]
[1730834804458,17.23180485,167.06,167.01,32.30070485]
[1730834804644,17.23180485,167.12,167.01,53.25740485]
[1730834804645,5.9837,167.12,167.01,53.25740485]
[1730834804847,17.23180485,167.07,167.01,53.25740485]
[1730834805435,17.23180485,167.08,167.01,53.25740485]
[1730834805633,23.21690485,167.08,167.01,53.25740485]
[1730834805837,5.9846,167.1,167.02,61.00868885]
[1730834806175,0.3076131,167.17,167.1,20.0]
[1730834806455,0.3076131,167.17,167.12,38.92230485]
[1730834806955,0.3076131,167.17,167.13,17.23180485]
[1730834807642,0.3076131,167.17,167.13,20.9417]
[1730834808867,0.3076131,167.17,167.13,38.17350485]
[1730834809158,0.3076131,167.17,167.16,17.23180485]
[1730834809640,0.3076131,167.17,167.15,17.23180485]
[1730834810743,0.3076131,167.17,167.15,37.23180485]
[1730834810936,0.3076131,167.17,167.16,5.9822]
[1730834811837,0.3076131,167.17,167.16,66.99088885]
[1730834812038,0.3076131,167.17,167.16,226.99088885]
[1730834812857,0.3076131,167.17,167.16,242.45338885]
[1730834813041,0.3076131,167.25,167.21,17.23180485]
[1730834813241,0.3076131,167.25,167.21,176.92419175]
[1730834813647,0.3076131,167.25,167.21,159.6923869]
[1730834815151,0.3076131,167.25,167.21,165.6727869]
[1730834816550,17.53941795,167.25,167.21,165.6727869]
[1730834817857,17.53941795,167.25,167.21,159.6923869]
[1730834818056,17.23180485,167.24,167.21,159.6923869]
[1730834818249,17.23180485,167.23,167.21,159.6923869]
[1730834818448,17.23180485,167.24,167.21,159.6923869]
[1730834821060,23.51871795,167.25,167.21,159.6923869]
[1730834821737,17.23180485,167.24,167.21,159.6923869]
[1730834822645,23.51871795,167.25,167.21,159.6923869]
[1730834822968,17.23180485,167.24,167.21,159.6923869]
[1730834823350,23.51871795,167.25,167.21,159.6923869]
[1730834823679,17.23180485,167.24,167.21,159.6923869]
[1730834825463,10.99723565,167.24,167.21,159.6923869]
[1730834830968,10.99723565,167.22,167.21,159.6923869]
[1730834832969,5.9794,167.24,167.21,159.6923869]
[1730834833179,10.99723565,167.23,167.21,159.6923869]
[1730834833475,10.99723565,167.24,167.21,159.6923869]
[1730834833873,10.99723565,167.23,167.21,159.6923869]
[1730834834268,0.3076131,167.25,167.24,0.1]
[1730834834472,0.3076131,167.25,167.24,54.87411965]
[1730834835058,0.3076131,167.25,167.24,54.77411965]
[1730834835256,0.3076131,167.25,167.24,49.756284]
[1730834835570,0.3076131,167.25,167.24,66.92791177]
[1730834836776,0.3076131,167.25,167.24,67.02791177]
[1730834840190,0.3076131,167.25,167.24,67.12791177]
[1730834842854,0.3076131,167.34,167.3,23.776884]
[1730834843071,0.3076131,167.34,167.3,40.94851177]
[1730834843966,0.3076131,167.34,167.32,40.94851177]
[1730834844276,0.3076131,167.34,167.33,60.94851177]
[1730834844455,0.3076131,167.34,167.33,61.04851177]
[1730834844651,0.3076131,167.34,167.33,67.02471177]
[1730834844855,0.3076131,167.34,167.33,66.92471177]
[1730834845077,0.3076131,167.34,167.33,67.02471177]
[1730834848160,0.3076131,167.34,167.33,66.92471177]
[1730834848374,0.3076131,167.34,167.33,29.753084]
[1730834848753,0.3076131,167.34,167.33,23.776884]
[1730834849575,0.3076131,167.34,167.3,25.9772]
[1730834849784,17.47924087,167.34,167.3,25.9772]
[1730834850877,17.47924087,167.34,167.31,23.776884]
[1730834852861,17.47924087,167.34,167.32,5.9765]
[1730834853063,17.47924087,167.34,167.3,34.9432]
[1730834853064,17.17162777,167.33,167.3,20.9204]
[1730834853285,17.17162777,167.32,167.3,20.9204]
[1730834853471,17.17162777,167.33,167.3,20.9204]
[1730834854054,17.17162777,167.32,167.3,14.9432]
[1730834854362,0.3076131,167.34,167.3,14.9432]
[1730834854363,17.17162777,167.31,167.3,14.9432]
[1730834855181,17.17162777,167.31,167.27,160.0]
[1730834855379,17.17162777,167.28,167.27,14.9457]
[1730834855957,17.17162777,167.29,167.27,14.9457]
[1730834856386,17.17162777,167.28,167.24,14.9485]
[1730834857360,5.9766,167.32,167.24,20.9279]
[1730834857561,17.17162777,167.29,167.24,20.9279]
[1730834858170,17.17162777,167.28,167.24,20.9279]
[1730834859679,5.977,167.31,167.24,20.9279]
[1730834859981,17.17162777,167.29,167.24,20.9279]
[1730834863062,17.17162777,167.28,167.24,20.9279]
[1730834865064,17.17162777,167.29,167.24,20.9279]
[1730834865265,17.17162777,167.28,167.24,20.9279]
[1730834865781,17.17162777,167.27,167.24,20.9279]
[1730834866361,17.17162777,167.28,167.24,20.9279]
[1730834866987,15.681,167.3,167.24,20.9279]
[1730834866988,17.17162777,167.27,167.24,20.9279]
[1730834869386,10.99371328,167.27,167.24,14.9485]
[1730834870090,10.99371328,167.26,167.24,14.9485]
[1730834871690,10.99371328,167.27,167.24,14.9485]
[1730834871887,10.99371328,167.28,167.24,14.9485]
[1730834872868,10.99371328,167.28,167.24,20.9279]
[1730834873062,6.1007,167.33,167.25,23.776884]
[1730834873063,5.9762,167.33,167.25,23.776884]
[1730834873277,10.99371328,167.31,167.25,194.77059728]
[1730834873665,10.99371328,167.33,167.27,10.99371328]
[1730834873891,10.99371328,167.33,167.28,10.99371328]
[1730834874078,11.30132638,167.34,167.28,10.99371328]
[1730834874265,10.99371328,167.32,167.27,170.99371328]
[1730834874589,10.99371328,167.31,167.27,160.0]
[1730834874777,10.99371328,167.3,167.27,160.0]
[1730834875394,10.99371328,167.31,167.27,165.9782]
[1730834875568,10.99371328,167.32,167.27,165.9782]
[1730834875763,10.99371328,167.32,167.27,180.924]
[1730834875971,10.99371328,167.32,167.27,191.91771328]
[1730834876488,5.9762,167.33,167.27,191.91771328]
[1730834876489,10.99371328,167.31,167.27,180.924]
[1730834878390,10.99371328,167.31,167.27,14.9458]
[1730834880290,10.99371328,167.3,167.27,14.9458]
[1730834880677,10.99371328,167.31,167.27,14.9458]
[1730834881486,10.99371328,167.3,167.27,14.9458]
[1730834883872,10.99371328,167.31,167.27,14.9458]
[1730834884883,10.99371328,167.3,167.27,14.9458]
[1730834887093,10.99371328,167.31,167.27,14.9458]
[1730834887296,10.99371328,167.32,167.27,14.9458]
[1730834887792,10.99371328,167.31,167.27,14.9458]
[1730834888486,10.99371328,167.31,167.27,20.9241]
[1730834890091,10.99371328,167.3,167.27,20.9241]
[1730834890505,10.99371328,167.3,167.27,14.9458]
[1730834890698,10.99371328,167.31,167.27,14.9458]
[1730834891573,10.99371328,167.31,167.27,20.9241]
[1730834892888,10.99371328,167.32,167.27,20.9241]
[1730834893693,10.99371328,167.31,167.27,20.9241]
[1730834896098,10.99371328,167.3,167.27,20.9241]
[1730834897115,10.99371328,167.31,167.27,14.9458]
[1730834900377,10.99371328,167.32,167.27,14.9458]
[1730834900582,10.99371328,167.32,167.27,20.9241]
[1730834902482,10.99371328,167.31,167.27,14.9458]
[1730834904400,10.99371328,167.28,167.24,14.9482]
[1730834904601,10.99371328,167.28,167.22,34.77059728]
[1730834904908,15.2478131,167.34,167.24,10.99371328]
[1730834904909,10.99371328,167.3,167.24,10.99371328]
[1730834905288,10.99371328,167.29,167.24,10.99371328]
[1730834905813,10.99371328,167.29,167.23,10.99371328]
[1730834906103,10.99371328,167.29,167.24,20.9279]
[1730834907008,0.3076131,167.34,167.26,30.99371328]
[1730834907209,0.3076131,167.34,167.29,10.99371328]
[1730834907616,0.3076131,167.34,167.29,34.77059728]
[1730834907807,0.3076131,167.34,167.3,10.99371328]
[1730834908194,0.3076131,167.34,167.31,20.9192]
[1730834909301,0.3076131,167.34,167.31,14.9423]
[1730834909614,11.30132638,167.34,167.31,14.9423]
[1730834909988,0.3076131,167.34,167.31,14.9423]
[1730834912287,11.30132638,167.34,167.31,14.9423]
[1730834912913,0.3076131,167.34,167.31,14.9423]
[1730834916313,0.3076131,167.34,167.31,20.9192]
[1730834916815,11.30132638,167.34,167.31,20.9192]
[1730834917115,10.99371328,167.33,167.31,20.9192]
[1730834917310,10.99371328,167.32,167.29,160.0]
[1730834918295,10.99371328,167.32,167.29,165.9775]
[1730834919921,10.99371328,167.32,167.29,20.9216]
[1730834920504,10.99371328,167.33,167.29,20.9216]
[1730834920832,10.99371328,167.32,167.29,14.9441]
[1730834921822,10.99371328,167.33,167.29,14.9441]
[1730834922320,11.30132638,167.34,167.29,25.93781328]
[1730834922500,0.3076131,167.34,167.29,25.93781328]
[1730834922705,0.3076131,167.34,167.3,10.99371328]
[1730834923006,0.3076131,167.34,167.31,10.99371328]
[1730834924209,0.3076131,167.34,167.32,10.99371328]
[1730834924417,0.3076131,167.34,167.33,5.9762]
[1730834925306,0.3076131,167.34,167.32,14.941]
[1730834929828,0.3076131,167.34,167.3,160.0]
[1730834929829,10.99371328,167.33,167.3,160.0]
[1730834930041,10.99371328,167.31,167.24,165.9794]
[1730834930324,10.99371328,167.27,167.24,20.9271]
[1730834931310,10.99371328,167.27,167.24,14.9477]
[1730834932914,10.99371328,167.26,167.24,14.9477]
[1730834933536,10.99371328,167.28,167.24,14.9477]
[1730834933749,10.99371328,167.29,167.24,25.94141328]
[1730834934228,0.3076131,167.34,167.25,10.99371328]
[1730834934229,10.99371328,167.3,167.25,10.99371328]
[1730834934410,10.99371328,167.3,167.26,20.9254]
[1730834936625,10.99371328,167.3,167.24,10.99371328]
[1730834937636,5.9762,167.33,167.25,20.9266]
[1730834937817,10.99371328,167.3,167.25,20.9266]
[1730834938722,10.99371328,167.29,167.25,20.9266]
[1730834939130,10.99371328,167.28,167.25,20.9266]
[1730834939316,10.99371328,167.29,167.25,20.9266]
[1730834940335,10.99371328,167.29,167.25,14.9476]
[1730834940727,10.99371328,167.27,167.25,14.9476]
[1730834942531,10.99371328,167.28,167.25,14.9476]
[1730834945846,0.4076131,167.34,167.25,14.9476]
[1730834945847,10.99371328,167.29,167.25,14.9476]
[1730834947546,10.99371328,167.28,167.25,14.9476]
[1730834947847,10.99371328,167.27,167.25,14.9476]
[1730834948158,10.99371328,167.29,167.25,14.9476]
[1730834948444,10.99371328,167.28,167.25,14.9476]
[1730834952047,10.99371328,167.27,167.25,14.9476]
[1730834952247,10.99371328,167.28,167.25,14.9476]
[1730834955741,0.4076131,167.34,167.25,14.9476]
[1730834955742,10.99371328,167.29,167.25,14.9476]
[1730834956332,10.99371328,167.28,167.25,14.9476]
[1730834957451,10.99371328,167.27,167.25,14.9476]
[1730834959127,0.4076131,167.34,167.25,14.9476]
[1730834959128,10.99371328,167.28,167.25,14.9476]
[1730834960461,10.99371328,167.26,167.23,167.01624357]
[1730834960628,10.99371328,167.25,167.23,167.01624357]
[1730834960828,10.99371328,167.24,167.23,1.03654357]
[1730834961045,10.99371328,167.24,167.22,14.9503]
[1730834961256,10.99371328,167.23,167.21,7.01728128]
[1730834961443,10.99371328,167.22,167.21,7.01728128]
[1730834961646,10.99371328,167.23,167.21,5.9805]
[1730834962545,10.99371328,167.23,167.19,20.9341]
[1730834963954,10.99371328,167.24,167.19,20.9341]
[1730834968455,0.1,167.29,167.19,20.9341]
[1730834968762,10.99371328,167.24,167.19,20.9341]
[1730834969062,10.99371328,167.23,167.19,20.9341]
[1730834969646,10.99371328,167.24,167.19,20.9341]
[1730834970365,5.9783,167.27,167.19,31.92781328]
[1730834970366,10.99371328,167.25,167.19,31.92781328]
[1730834970544,5.9777,167.29,167.21,10.99371328]
[1730834970739,10.99371328,167.27,167.21,10.99371328]
[1730834971065,10.99371328,167.26,167.2,194.77059728]
[1730834972553,10.99371328,167.26,167.21,20.9317]
[1730834973762,10.99371328,167.27,167.21,31.92541328]
[1730834973967,10.99371328,167.26,167.21,31.92541328]
[1730834974675,5.9776,167.29,167.21,31.92541328]
[1730834974842,10.99371328,167.26,167.21,31.92541328]
[1730834975261,10.99371328,167.27,167.21,31.92541328]
[1730834975674,10.99371328,167.25,167.21,20.9317]
[1730834981352,10.99371328,167.23,167.21,14.9512]
[1730834981552,10.99371328,167.22,167.21,14.9512]
[1730834981774,10.99371328,167.22,167.2,160.0]
[1730834982165,10.99371328,167.21,167.18,1.03681426]
[1730834982368,10.99371328,167.2,167.18,1.03681426]
[1730834982552,10.99371328,167.21,167.18,1.03681426]
[1730834982750,10.99371328,167.21,167.18,7.01831426]
[1730834985373,10.99371328,167.21,167.18,1.03681426]
[1730834985587,10.99371328,167.22,167.18,15.99071426]
[1730834986884,10.99371328,167.22,167.18,21.97221426]
[1730834987180,10.99371328,167.23,167.18,32.96592754]
[1730834987354,5.978,167.28,167.18,32.96592754]
[1730834987558,5.978,167.28,167.19,10.99371328]
[1730834987762,12.6354,167.3,167.21,10.99371328]
[1730834987954,10.99371328,167.27,167.21,10.99371328]
[1730834988571,10.99371328,167.26,167.21,10.99371328]
[1730834989579,10.99371328,167.26,167.22,20.9304]
[1730834989762,5.978,167.28,167.22,20.9304]
[1730834989963,10.99371328,167.26,167.22,20.9304]
[1730834990760,10.99371328,167.27,167.22,20.9304]
[1730834991163,5.9773,167.3,167.23,10.99371328]
[1730834991483,10.99371328,167.3,167.24,10.99371328]
[1730834991695,10.99371328,167.29,167.24,10.99371328]
[1730834992372,10.99371328,167.29,167.23,170.99371328]
[1730834992701,10.99371328,167.28,167.24,20.9279]
[1730834993262,10.99371328,167.27,167.24,20.9279]
[1730834993679,10.99371328,167.28,167.24,20.9279]
[1730834993869,10.99371328,167.27,167.24,20.9279]
[1730834994076,10.99371328,167.28,167.24,20.9279]
[1730834996890,10.99371328,167.25,167.22,160.0]
[1730834997068,10.99371328,167.25,167.21,172.2457]
[1730834997873,10.99371328,167.27,167.21,198.19061328]
[1730834998284,10.99371328,167.27,167.22,10.99371328]
[1730834999392,10.99371328,167.27,167.21,198.19061328]
[1730835002597,5.9772,167.3,167.22,10.99371328]
[1730835002892,10.99371328,167.28,167.22,170.99371328]
[1730835003198,10.99371328,167.27,167.22,170.99371328]
[1730835003987,10.99371328,167.27,167.23,5.9797]
[1730835004993,10.99371328,167.25,167.23,5.9797]
[1730835005187,0.1,167.31,167.23,5.9797]
[1730835005403,10.99371328,167.27,167.23,5.9797]
[1730835005732,10.99371328,167.24,167.22,160.0]
[1730835005880,23.876884,167.3,167.19,182.70778943]
[1730835006206,10.99371328,167.22,167.19,181.671]
[1730835006374,10.99371328,167.22,167.19,21.671]
[1730835006696,10.99371328,167.2,167.17,174.9544]
[1730835006913,10.99371328,167.2,167.17,180.9362]
[1730835007078,10.99371328,167.22,167.17,180.9362]
[1730835007668,5.9797,167.24,167.17,180.9362]
[1730835007901,10.99371328,167.22,167.17,191.92991328]
[1730835008198,10.99371328,167.22,167.17,180.9362]
[1730835009527,5.9786,167.27,167.19,10.99371328]
[1730835009706,10.99371328,167.25,167.19,170.99371328]
[1730835010013,10.99371328,167.24,167.19,160.0]
[1730835010606,10.99371328,167.25,167.19,170.99371328]
[1730835010796,10.99371328,167.25,167.2,31.92661328]
[1730835010997,10.99371328,167.25,167.2,20.9329]
[1730835012104,10.99371328,167.24,167.2,20.9329]
[1730835014625,10.99371328,167.24,167.2,180.9329]
[1730835015101,10.99371328,167.25,167.2,180.9329]
[1730835017135,10.99371328,167.24,167.2,180.9329]
[1730835020108,10.99371328,167.25,167.2,180.9329]
[1730835021733,10.99371328,167.23,167.2,180.9329]
[1730835022033,10.99371328,167.24,167.2,180.9329]
[1730835024108,10.99371328,167.26,167.2,191.92661328]
[1730835024426,10.99371328,167.25,167.2,180.9329]
[1730835025221,10.99371328,167.24,167.2,180.9329]
[1730835026127,10.99371328,167.23,167.2,180.9329]
[1730835026609,10.99371328,167.22,167.2,160.0]
[1730835027013,10.99371328,167.21,167.2,160.0]
[1730835027235,10.99371328,167.21,167.17,21.97326262]
[1730835027236,10.99371328,167.21,167.17,15.99176262]
[1730835027407,10.99371328,167.19,167.17,1.03716262]
[1730835027605,10.99371328,167.18,167.17,1.03716262]
[1730835028330,21.44839598,167.18,167.12,160.0]
[1730835028628,10.99371328,167.15,167.11,196.8002]
[1730835031032,10.99371328,167.16,167.11,207.79391328]
[1730835031218,10.99371328,167.17,167.11,207.79391328]
[1730835031420,14.9513,167.21,167.11,207.79391328]
[1730835031421,20.928,167.24,167.13,31.93541328]
[1730835031619,10.99371328,167.21,167.15,10.99371328]
[1730835032649,10.99371328,167.2,167.14,34.77059728]
[1730835032932,10.99371328,167.2,167.14,194.77059728]
[1730835033618,10.99371328,167.19,167.14,194.77059728]
[1730835033822,15.46274631,167.19,167.15,20.9392]
[1730835035136,10.99371328,167.2,167.15,20.9392]
[1730835035430,10.99371328,167.19,167.15,20.9392]
[1730835035754,4.46808918,167.19,167.15,20.9392]
[1730835036111,15.46180246,167.19,167.15,20.9392]
[1730835037626,10.99371328,167.19,167.15,20.9392]
[1730835038318,10.99371328,167.18,167.15,20.9392]
[1730835039124,10.99371328,167.19,167.15,20.9392]
[1730835039822,10.99371328,167.18,167.15,14.9566]
[1730835040021,10.99371328,167.16,167.12,5.9837]
[1730835040228,10.99371328,167.15,167.12,5.9837]
[1730835040431,10.99371328,167.13,167.08,14.9627]
[1730835040642,0.1,167.17,167.08,14.9627]
[1730835040643,10.99371328,167.11,167.08,14.9627]
[1730835041319,10.99371328,167.1,167.08,14.9627]
[1730835041627,10.99371328,167.12,167.08,20.9478]
[1730835042441,10.99371328,167.14,167.08,31.94151328]
[1730835042648,10.99371328,167.14,167.09,10.99371328]
[1730835043020,10.99371328,167.15,167.09,10.99371328]
[1730835043338,10.99371328,167.14,167.09,10.99371328]
[1730835043743,10.99371328,167.14,167.08,31.94151328]
[1730835045535,10.99371328,167.14,167.09,10.99371328]
[1730835046050,10.99371328,167.14,167.08,25.95641328]
[1730835046219,10.99371328,167.15,167.09,10.99371328]
[1730835046543,0.1,167.21,167.11,10.99371328]
[1730835046744,10.99371328,167.17,167.11,10.99371328]
[1730835047138,10.99371328,167.16,167.1,10.99371328]
[1730835047660,10.99371328,167.16,167.11,31.93791328]
[1730835048846,10.99371328,167.17,167.11,31.93791328]
[1730835049151,21.2429,167.22,167.14,10.99371328]
[1730835049331,10.99371328,167.21,167.15,10.99371328]
[1730835050053,10.99371328,167.2,167.15,10.99371328]
[1730835050850,10.99371328,167.2,167.14,10.99371328]
[1730835051151,10.99371328,167.2,167.15,20.9392]
[1730835052450,10.99371328,167.18,167.15,20.9392]
[1730835054560,10.99371328,167.19,167.15,14.9566]
[1730835055367,10.99371328,167.2,167.15,14.9566]
[1730835055957,10.99371328,167.2,167.15,20.9392]
[1730835060259,10.99371328,167.19,167.15,20.9392]
[1730835062480,5.9807,167.21,167.15,20.9392]
[1730835062655,10.99371328,167.2,167.15,20.9392]
[1730835064255,22.3825,167.26,167.17,10.99371328]
[1730835064458,10.99371328,167.23,167.17,170.99371328]
[1730835065456,10.99371328,167.19,167.17,174.9541]
[1730835065658,10.99371328,167.19,167.17,14.9541]
[1730835066879,10.99371328,167.18,167.15,165.9825]
[1730835068553,5.981,167.2,167.12,27.1363]
[1730835068554,10.99371328,167.16,167.12,27.1363]
[1730835069082,10.99371328,167.17,167.12,27.1363]
[1730835069870,10.99371328,167.18,167.12,38.13001328]
[1730835070487,10.99371328,167.19,167.13,10.99371328]
[1730835070778,5.9805,167.21,167.12,20.9426]
[1730835070779,10.99371328,167.15,167.12,20.9426]
[1730835071190,10.99371328,167.13,167.1,5.9841]
[1730835071883,10.99371328,167.13,167.09,20.9463]
[1730835072186,5.9826,167.15,166.99,30.0408]
[1730835072187,10.99371328,167.1,167.06,5.9858]
[1730835072678,5.9826,167.15,167.06,20.9504]
[1730835072679,10.99371328,167.09,167.06,20.9504]
[1730835072864,10.99371328,167.09,167.06,14.9646]
[1730835073067,10.99371328,167.09,167.06,20.9504]
[1730835076588,10.99371328,167.1,167.06,20.9504]
[1730835078268,10.99371328,167.11,167.06,31.94411328]
[1730835078676,10.99371328,167.11,167.06,20.9504]
[1730835078981,10.99371328,167.1,167.06,20.9504]
[1730835079387,10.99371328,167.08,167.06,14.9646]
[1730835079769,10.99371328,167.08,167.06,20.9504]
[1730835079981,10.99371328,167.09,167.06,20.9504]
[1730835081866,10.99371328,167.08,167.06,20.9504]
[1730835085468,10.99371328,167.07,167.05,0.3076131]
[1730835085682,10.99371328,167.06,167.05,0.3076131]
[1730835090171,5.984,167.11,167.05,6.2938131]
[1730835090376,5.9837,167.13,167.05,17.28752638]
[1730835090579,10.99371328,167.09,167.05,6.2938131]
[1730835090800,10.99371328,167.08,167.05,6.2938131]
[1730835090970,10.99371328,167.07,167.05,21.2593131]
[1730835091289,10.99371328,167.07,167.05,15.2731131]
[1730835092100,10.99371328,167.09,167.05,21.2593131]
[1730835092279,10.99371328,167.1,167.05,21.2593131]
[1730835093085,10.99371328,167.11,167.05,32.25302638]
[1730835093323,10.99371328,167.1,167.05,192.25302638]